[Event "Live Chess"]
[Site "Chess.com"]
[Date "2024.06.01"]
[Round "-"]
[White "nigelst"]
[Black "nitrofish07"]
[Result "0-1"]
[WhiteElo "1657"]
[BlackElo "2096"]
[TimeControl "300"]
[EndTime "13:31:29 PDT"]
[Termination "nitrofish07 won on time"]

1. e4 {[%clk 0:04:57.6]} 1... c5 {[%clk 0:04:58.8]} 2. Nf3 {[%clk 0:04:56.7]}
2... d6 {[%clk 0:04:58.3]} 3. Bb5+ {[%clk 0:04:54.1]} 3... Bd7 {[%clk
0:04:56.8]} 4. Bxd7+ {[%clk 0:04:52.5]} 4... Qxd7 {[%clk 0:04:56.7]} 5. O-O
{[%clk 0:04:51.3]} 5... Nf6 {[%clk 0:04:55.9]} 6. Qe2 {[%clk 0:04:48.7]} 6...
Nc6 {[%clk 0:04:54.2]} 7. c3 {[%clk 0:04:47]} 7... e5 {[%clk 0:04:53.4]} 8. Rd1
{[%clk 0:04:35.4]} 8... g6 {[%clk 0:04:52]} 9. d4 {[%clk 0:04:34.2]} 9... cxd4
{[%clk 0:04:47.1]} 10. cxd4 {[%clk 0:04:32.4]} 10... Qc7 {[%clk 0:04:46.2]} 11.
dxe5 {[%clk 0:04:23.2]} 11... dxe5 {[%clk 0:04:43.6]} 12. Nc3 {[%clk 0:04:18.7]}
12... Bg7 {[%clk 0:04:42]} 13. Bg5 {[%clk 0:04:15.3]} 13... O-O {[%clk
0:04:39.5]} 14. Bxf6 {[%clk 0:04:13.8]} 14... Bxf6 {[%clk 0:04:36.8]} 15. Nd5
{[%clk 0:04:12.3]} 15... Qd8 {[%clk 0:04:32.9]} 16. Nb4 {[%clk 0:03:45.2]} 16...
Qc7 {[%clk 0:04:17]} 17. Rac1 {[%clk 0:03:38.8]} 17... Bg7 {[%clk 0:04:05.1]}
18. Qc4 {[%clk 0:03:28.9]} 18... Rfd8 {[%clk 0:03:39.6]} 19. Nd5 {[%clk
0:02:58.5]} 19... Qa5 {[%clk 0:03:15.8]} 20. b4 {[%clk 0:02:49.2]} 20... Qa4
{[%clk 0:02:53.1]} 21. b5 {[%clk 0:02:30.2]} 21... Qxc4 {[%clk 0:02:48.9]} 22.
Rxc4 {[%clk 0:02:28.5]} 22... Nd4 {[%clk 0:02:45.6]} 23. Nxd4 {[%clk 0:02:17.5]}
23... exd4 {[%clk 0:02:45.5]} 24. Rc7 {[%clk 0:02:13.2]} 24... b6 {[%clk
0:02:19.3]} 25. f4 {[%clk 0:01:55.4]} 25... f5 {[%clk 0:02:15.8]} 26. Ne7+
{[%clk 0:01:49.1]} 26... Kh8 {[%clk 0:02:07.2]} 27. e5 {[%clk 0:01:47.7]} 27...
Bf8 {[%clk 0:02:02.2]} 28. Nc6 {[%clk 0:01:44.6]} 28... Rdc8 {[%clk 0:01:58.5]}
29. Rxc8 {[%clk 0:01:41.9]} 29... Rxc8 {[%clk 0:01:58.4]} 30. Kf1 {[%clk
0:01:39.5]} 30... a6 {[%clk 0:01:50.9]} 31. Rxd4 {[%clk 0:01:34.7]} 31... axb5
{[%clk 0:01:48.2]} 32. Na7 {[%clk 0:01:32.5]} 32... Ra8 {[%clk 0:01:44.7]} 33.
Nxb5 {[%clk 0:01:28.7]} 33... Rxa2 {[%clk 0:01:43]} 34. Rd8 {[%clk 0:01:27.1]}
34... Kg7 {[%clk 0:01:42.2]} 35. Nc7 {[%clk 0:01:24.9]} 35... Bc5 {[%clk
0:01:18.5]} 36. Ne6+ {[%clk 0:01:21.8]} 36... Kf7 {[%clk 0:01:15.3]} 37. Nxc5
{[%clk 0:01:12.7]} 37... bxc5 {[%clk 0:01:15.2]} 38. Rc8 {[%clk 0:01:11.6]}
38... Ra1+ {[%clk 0:01:11.8]} 39. Kf2 {[%clk 0:01:10.2]} 39... Ra2+ {[%clk
0:01:10.2]} 40. Kf3 {[%clk 0:01:09]} 40... Ra3+ {[%clk 0:01:08.7]} 41. Kf2
{[%clk 0:01:08]} 41... Ra2+ {[%clk 0:01:01.2]} 42. Kf3 {[%clk 0:01:05.9]} 42...
Rc2 {[%clk 0:00:58]} 43. Rc7+ {[%clk 0:01:03.6]} 43... Kg8 {[%clk 0:00:50.2]}
44. e6 {[%clk 0:00:51.2]} 44... Rc3+ {[%clk 0:00:45.1]} 45. Ke2 {[%clk
0:00:46.7]} 45... Rc4 {[%clk 0:00:40.8]} 46. Kd3 {[%clk 0:00:44.3]} 46... Rxf4
{[%clk 0:00:35.5]} 47. Rxc5 {[%clk 0:00:43.2]} 47... Re4 {[%clk 0:00:33.7]} 48.
Rc6 {[%clk 0:00:40]} 48... Kf8 {[%clk 0:00:32]} 49. h3 {[%clk 0:00:35.3]} 49...
h5 {[%clk 0:00:27.6]} 50. e7+ {[%clk 0:00:27.7]} 50... Kxe7 {[%clk 0:00:25]} 51.
Rxg6 {[%clk 0:00:26.5]} 51... Ra4 {[%clk 0:00:24]} 52. Rg5 {[%clk 0:00:24.4]}
52... Ra3+ {[%clk 0:00:20.1]} 53. Kd4 {[%clk 0:00:22.6]} 53... Kf6 {[%clk
0:00:19.7]} 54. Rxh5 {[%clk 0:00:19.4]} 54... Rg3 {[%clk 0:00:19.4]} 55. Rh8
{[%clk 0:00:16.1]} 55... Rxg2 {[%clk 0:00:18.8]} 56. h4 {[%clk 0:00:14.9]} 56...
Rh2 {[%clk 0:00:18.1]} 57. Kd5 {[%clk 0:00:12.2]} 57... f4 {[%clk 0:00:16.2]}
58. Kd6 {[%clk 0:00:10.4]} 58... Kf5 {[%clk 0:00:14.1]} 59. Kd5 {[%clk
0:00:07.7]} 59... f3 {[%clk 0:00:12.1]} 60. Rf8+ {[%clk 0:00:06.7]} 60... Kg4
{[%clk 0:00:11.5]} 61. Rg8+ {[%clk 0:00:06.1]} 61... Kxh4 {[%clk 0:00:10.4]} 62.
Rh8+ {[%clk 0:00:05.1]} 62... Kg3 {[%clk 0:00:09.8]} 63. Rg8+ {[%clk 0:00:04.2]}
63... Kf2 {[%clk 0:00:08.2]} 64. Ke4 {[%clk 0:00:02.6]} 64... Rh4+ {[%clk
0:00:07.1]} 65. Kd3 {[%clk 0:00:02]} 65... Rh6 {[%clk 0:00:04.5]} 66. Rf8 {[%clk
0:00:01.9]} 66... Re6 {[%clk 0:00:03.2]} 67. Re8 {[%clk 0:00:01.6]} 67... Rxe8
{[%clk 0:00:02.1]} 68. Kd4 {[%clk 0:00:00.9]} 68... Ke2 {[%clk 0:00:01.8]} 69.
Kd5 {[%clk 0:00:00.8]} 69... f2 {[%clk 0:00:01.7]} 70. Kd6 {[%clk 0:00:00.3]}
70... f1=Q {[%clk 0:00:01.6]} 0-1

[Event "Live Chess"]
[Site "Chess.com"]
[Date "2024.06.01"]
[Round "-"]
[White "wadsy27"]
[Black "LL220284LL"]
[Result "0-1"]
[WhiteElo "2539"]
[BlackElo "2560"]
[TimeControl "300"]
[EndTime "13:31:29 PDT"]
[Termination "LL220284LL won by resignation"]

1. d4 {[%clk 0:04:58]} 1... Nf6 {[%clk 0:04:59.2]} 2. c4 {[%clk 0:04:57]} 2...
e6 {[%clk 0:04:58.7]} 3. g3 {[%clk 0:04:56.4]} 3... d5 {[%clk 0:04:57.7]} 4. Nf3
{[%clk 0:04:55.2]} 4... dxc4 {[%clk 0:04:56.9]} 5. Bg2 {[%clk 0:04:54.2]} 5...
Bb4+ {[%clk 0:04:55.8]} 6. Bd2 {[%clk 0:04:53.2]} 6... a5 {[%clk 0:04:55.4]} 7.
a3 {[%clk 0:04:50.9]} 7... Bxd2+ {[%clk 0:04:54.1]} 8. Nbxd2 {[%clk 0:04:49.9]}
8... b5 {[%clk 0:04:52.4]} 9. b3 {[%clk 0:04:49.2]} 9... cxb3 {[%clk 0:04:46.6]}
10. Qxb3 {[%clk 0:04:47.9]} 10... Qd5 {[%clk 0:04:32]} 11. Ne5 {[%clk
0:04:38.3]} 11... Qxg2 {[%clk 0:04:23.2]} 0-1

[Event "Live Chess"]
[Site "Chess.com"]
[Date "2024.06.01"]
[Round "-"]
[White "Bradfield133"]
[Black "KeithArkell"]
[Result "0-1"]
[WhiteElo "1907"]
[BlackElo "2453"]
[TimeControl "300"]
[EndTime "13:31:36 PDT"]
[Termination "KeithArkell won by resignation"]

1. c4 {[%clk 0:04:57.5]} 1... c5 {[%clk 0:04:59.1]} 2. g3 {[%clk 0:04:56.5]}
2... Nc6 {[%clk 0:04:58.5]} 3. Bg2 {[%clk 0:04:55.5]} 3... g6 {[%clk 0:04:58.1]}
4. Nc3 {[%clk 0:04:54.2]} 4... Bg7 {[%clk 0:04:57.6]} 5. e4 {[%clk 0:04:50.6]}
5... e6 {[%clk 0:04:56.3]} 6. Nge2 {[%clk 0:04:49.4]} 6... Nge7 {[%clk
0:04:55.6]} 7. O-O {[%clk 0:04:46.2]} 7... O-O {[%clk 0:04:54.6]} 8. d3 {[%clk
0:04:43.7]} 8... a6 {[%clk 0:04:53]} 9. f4 {[%clk 0:04:38.5]} 9... b5 {[%clk
0:04:52]} 10. cxb5 {[%clk 0:04:33.8]} 10... axb5 {[%clk 0:04:51.3]} 11. Nxb5
{[%clk 0:04:31.6]} 11... Ba6 {[%clk 0:04:50.2]} 12. Na3 {[%clk 0:04:23]} 12...
Nb4 {[%clk 0:04:48.7]} 13. e5 {[%clk 0:03:51]} 13... Nxd3 {[%clk 0:04:43.8]} 14.
Bxa8 {[%clk 0:03:41]} 14... Qxa8 {[%clk 0:04:42.7]} 15. Be3 {[%clk 0:03:17.3]}
15... Nf5 {[%clk 0:04:33.4]} 16. Bxc5 {[%clk 0:03:09.4]} 16... Nxc5 {[%clk
0:04:32.1]} 17. Nd4 {[%clk 0:02:53.3]} 17... Ne3 {[%clk 0:04:29.6]} 0-1

[Event "Live Chess"]
[Site "Chess.com"]
[Date "2024.06.01"]
[Round "-"]
[White "MaksymYurii"]
[Black "Sweet-O"]
[Result "0-1"]
[WhiteElo "947"]
[BlackElo "1546"]
[TimeControl "300"]
[EndTime "13:31:38 PDT"]
[Termination "Sweet-O won by checkmate"]

1. e4 {[%clk 0:04:57.1]} 1... e5 {[%clk 0:04:59.3]} 2. Nf3 {[%clk 0:04:56]} 2...
Nf6 {[%clk 0:04:59.1]} 3. Bc4 {[%clk 0:04:54.9]} 3... Bc5 {[%clk 0:04:57.4]} 4.
O-O {[%clk 0:04:52.5]} 4... O-O {[%clk 0:04:56.7]} 5. Nc3 {[%clk 0:04:49.9]}
5... d6 {[%clk 0:04:56.2]} 6. d3 {[%clk 0:04:41.6]} 6... Bg4 {[%clk 0:04:55.5]}
7. h3 {[%clk 0:04:39.3]} 7... Bh5 {[%clk 0:04:55.1]} 8. Bg5 {[%clk 0:04:32.2]}
8... h6 {[%clk 0:04:52.8]} 9. Bxh6 {[%clk 0:04:22.6]} 9... gxh6 {[%clk 0:04:51]}
10. g4 {[%clk 0:04:21.8]} 10... Nxg4 {[%clk 0:04:48.8]} 11. hxg4 {[%clk
0:04:20]} 11... Bxg4 {[%clk 0:04:48.7]} 12. Nh2 {[%clk 0:04:18]} 12... Bxd1
{[%clk 0:04:46]} 13. Kh1 {[%clk 0:04:16.8]} 13... Bxc2 {[%clk 0:04:39]} 14. Nd5
{[%clk 0:04:08.1]} 14... Ba4 {[%clk 0:04:30.6]} 15. Ng4 {[%clk 0:03:51.1]} 15...
Qh4+ {[%clk 0:04:27.5]} 16. Kg1 {[%clk 0:03:49.6]} 16... Qxg4+ {[%clk
0:04:26.1]} 17. Kh1 {[%clk 0:03:48.5]} 17... Qh3+ {[%clk 0:04:19.8]} 18. Kg1
{[%clk 0:03:42.3]} 18... Kh7 {[%clk 0:04:18.9]} 19. Rae1 {[%clk 0:03:32]} 19...
Rg8# {[%clk 0:04:17.6]} 0-1

[Event "Live Chess"]
[Site "Chess.com"]
[Date "2024.06.01"]
[Round "-"]
[White "grillage"]
[Black "blunderabit"]
[Result "1-0"]
[WhiteElo "1880"]
[BlackElo "1783"]
[TimeControl "300"]
[EndTime "13:31:47 PDT"]
[Termination "grillage won by resignation"]

1. d4 {[%clk 0:04:57]} 1... d5 {[%clk 0:04:56.7]} 2. Nf3 {[%clk 0:04:54.8]} 2...
Nf6 {[%clk 0:04:54.5]} 3. c4 {[%clk 0:04:53.9]} 3... dxc4 {[%clk 0:04:52.5]} 4.
e3 {[%clk 0:04:52.6]} 4... b5 {[%clk 0:04:49.8]} 5. a4 {[%clk 0:04:47.8]} 5...
b4 {[%clk 0:04:47.4]} 6. Bxc4 {[%clk 0:04:45.6]} 6... e6 {[%clk 0:04:45.9]} 7.
O-O {[%clk 0:04:44]} 7... Be7 {[%clk 0:04:42]} 8. b3 {[%clk 0:04:30.3]} 8... Bb7
{[%clk 0:04:39.2]} 9. Bb2 {[%clk 0:04:27.8]} 9... O-O {[%clk 0:04:33.7]} 10.
Nbd2 {[%clk 0:04:26.1]} 10... Nbd7 {[%clk 0:04:19]} 11. Rc1 {[%clk 0:04:23.7]}
11... c5 {[%clk 0:04:17]} 12. Qe2 {[%clk 0:04:12]} 12... Qb6 {[%clk 0:04:05.6]}
13. Rfd1 {[%clk 0:04:04.4]} 13... Ne4 {[%clk 0:03:58.9]} 14. Nxe4 {[%clk
0:04:00.9]} 14... Bxe4 {[%clk 0:03:54.4]} 15. Nd2 {[%clk 0:03:52.2]} 15... Bc6
{[%clk 0:03:46.4]} 16. Qg4 {[%clk 0:03:39]} 16... Nf6 {[%clk 0:03:41.9]} 17. Qg3
{[%clk 0:03:36.2]} 17... Qb8 {[%clk 0:03:28.5]} 18. Qxb8 {[%clk 0:03:25]} 18...
Raxb8 {[%clk 0:03:25.8]} 19. dxc5 {[%clk 0:03:23]} 19... Nd7 {[%clk 0:02:39.4]}
20. Be2 {[%clk 0:02:38.3]} 20... Bxc5 {[%clk 0:02:24.7]} 21. Bf3 {[%clk
0:02:34.2]} 21... Bxf3 {[%clk 0:02:16.3]} 22. Nxf3 {[%clk 0:02:32.6]} 22... Rfd8
{[%clk 0:02:07.8]} 23. g3 {[%clk 0:02:24.3]} 23... Be7 {[%clk 0:02:03.7]} 24.
Rc7 {[%clk 0:02:21.8]} 24... Bf6 {[%clk 0:01:46.7]} 25. Rdxd7 {[%clk 0:01:59.7]}
25... Rxd7 {[%clk 0:01:37.8]} 26. Rxd7 {[%clk 0:01:58.4]} 26... Bxb2 {[%clk
0:01:36.1]} 27. Rxa7 {[%clk 0:01:57.4]} 27... Rc8 {[%clk 0:01:27.7]} 28. Rb7
{[%clk 0:01:49.3]} 28... Ba3 {[%clk 0:01:09.8]} 29. a5 {[%clk 0:01:46.6]} 29...
Kf8 {[%clk 0:00:57.8]} 30. a6 {[%clk 0:01:45.1]} 30... Ke8 {[%clk 0:00:42.7]}
31. a7 {[%clk 0:01:43.3]} 1-0

[Event "Live Chess"]
[Site "Chess.com"]
[Date "2024.06.01"]
[Round "-"]
[White "Eva3337"]
[Black "ShanthamGrarks"]
[Result "0-1"]
[WhiteElo "1169"]
[BlackElo "1820"]
[TimeControl "300"]
[EndTime "13:32:03 PDT"]
[Termination "ShanthamGrarks won by resignation"]

1. e4 {[%clk 0:04:49.6]} 1... d5 {[%clk 0:04:57.8]} 2. exd5 {[%clk 0:04:47.8]}
2... Qxd5 {[%clk 0:04:57.4]} 3. d3 {[%clk 0:04:43.7]} 3... Nc6 {[%clk
0:04:52.5]} 4. Nc3 {[%clk 0:04:42.9]} 4... Qa5 {[%clk 0:04:51.1]} 5. Bd2 {[%clk
0:04:40.9]} 5... Qb6 {[%clk 0:04:47.4]} 6. Nd5 {[%clk 0:04:37.9]} 6... Qxb2
{[%clk 0:04:42.7]} 7. Bc3 {[%clk 0:04:32.5]} 7... Qa3 {[%clk 0:04:37.7]} 8. Qd2
{[%clk 0:03:56.8]} 8... Qd6 {[%clk 0:04:34.8]} 9. a3 {[%clk 0:03:47]} 9... e6
{[%clk 0:04:31]} 10. Nb4 {[%clk 0:03:40.9]} 10... Nxb4 {[%clk 0:04:26.3]} 11.
Bxb4 {[%clk 0:03:39.4]} 11... Qd4 {[%clk 0:04:24]} 12. Bxf8 {[%clk 0:03:35.9]}
12... Qxa1+ {[%clk 0:04:21.2]} 0-1

[Event "Live Chess"]
[Site "Chess.com"]
[Date "2024.06.01"]
[Round "-"]
[White "ACM42"]
[Black "alicechristina"]
[Result "0-1"]
[WhiteElo "2154"]
[BlackElo "1970"]
[TimeControl "300"]
[EndTime "13:32:15 PDT"]
[Termination "alicechristina won on time"]

1. e4 {[%clk 0:04:57]} 1... e5 {[%clk 0:04:58.6]} 2. Nf3 {[%clk 0:04:54.9]} 2...
Nf6 {[%clk 0:04:56.7]} 3. Nxe5 {[%clk 0:04:49.7]} 3... d6 {[%clk 0:04:55.8]} 4.
Nf3 {[%clk 0:04:47.9]} 4... Nxe4 {[%clk 0:04:54.3]} 5. d3 {[%clk 0:04:46.9]}
5... Nf6 {[%clk 0:04:52.7]} 6. d4 {[%clk 0:04:44.7]} 6... d5 {[%clk 0:04:51.8]}
7. Bd3 {[%clk 0:04:43.3]} 7... Bd6 {[%clk 0:04:49.9]} 8. O-O {[%clk 0:04:41.8]}
8... O-O {[%clk 0:04:49.5]} 9. Nbd2 {[%clk 0:04:39.1]} 9... Bg4 {[%clk
0:04:46.5]} 10. h3 {[%clk 0:04:36.8]} 10... Bh5 {[%clk 0:04:45.1]} 11. b3 {[%clk
0:04:34.3]} 11... Nbd7 {[%clk 0:04:43.3]} 12. Bb2 {[%clk 0:04:32.6]} 12... Re8
{[%clk 0:04:40.7]} 13. c4 {[%clk 0:04:30.8]} 13... dxc4 {[%clk 0:04:38.7]} 14.
bxc4 {[%clk 0:04:28.9]} 14... Bb4 {[%clk 0:04:33.2]} 15. Qc2 {[%clk 0:04:24.4]}
15... Nf8 {[%clk 0:04:23.7]} 16. a3 {[%clk 0:04:18.3]} 16... Bd6 {[%clk
0:04:21.2]} 17. Ne5 {[%clk 0:04:08.8]} 17... N8d7 {[%clk 0:04:12.7]} 18. Rae1
{[%clk 0:04:00]} 18... Bg6 {[%clk 0:04:01]} 19. Nxg6 {[%clk 0:03:26.8]} 19...
hxg6 {[%clk 0:03:58.6]} 20. Nf3 {[%clk 0:03:09.6]} 20... Nh5 {[%clk 0:03:55.7]}
21. c5 {[%clk 0:03:01.7]} 21... Bf8 {[%clk 0:03:49.8]} 22. Qb3 {[%clk
0:02:57.6]} 22... Nf4 {[%clk 0:03:43.6]} 23. Bc4 {[%clk 0:02:49.8]} 23... Ne6
{[%clk 0:03:28.7]} 24. Bxe6 {[%clk 0:02:32.4]} 24... Rxe6 {[%clk 0:03:25.7]} 25.
Rxe6 {[%clk 0:02:30.8]} 25... fxe6 {[%clk 0:03:25.2]} 26. Qxe6+ {[%clk
0:02:29.3]} 26... Kh7 {[%clk 0:03:24.8]} 27. h4 {[%clk 0:02:11.3]} 27... Be7
{[%clk 0:03:18.7]} 28. Re1 {[%clk 0:02:04]} 28... Bf6 {[%clk 0:03:17.1]} 29. Bc1
{[%clk 0:01:42.1]} 29... Nf8 {[%clk 0:03:10.3]} 30. Qg4 {[%clk 0:01:35.8]} 30...
Qd5 {[%clk 0:02:59.7]} 31. Bg5 {[%clk 0:01:06.1]} 31... Nd7 {[%clk 0:02:41]} 32.
Qe4 {[%clk 0:00:51.7]} 32... Qxe4 {[%clk 0:02:38.2]} 33. Rxe4 {[%clk 0:00:50.2]}
33... Rd8 {[%clk 0:02:27.5]} 34. g3 {[%clk 0:00:47.4]} 34... Kg8 {[%clk
0:02:24]} 35. Re6 {[%clk 0:00:45.5]} 35... Bxg5 {[%clk 0:02:21.3]} 36. Nxg5
{[%clk 0:00:43.8]} 36... Nf6 {[%clk 0:02:19.8]} 37. Re7 {[%clk 0:00:42.2]} 37...
Rd7 {[%clk 0:02:18.4]} 38. Rxd7 {[%clk 0:00:39.6]} 38... Nxd7 {[%clk 0:02:17.3]}
39. Kg2 {[%clk 0:00:38.9]} 39... b6 {[%clk 0:02:12]} 40. c6 {[%clk 0:00:33]}
40... Nf6 {[%clk 0:02:08.1]} 41. Ne6 {[%clk 0:00:29.6]} 41... Nd5 {[%clk
0:02:06.3]} 42. Kf3 {[%clk 0:00:26.1]} 42... Kf7 {[%clk 0:02:05.2]} 43. Nf4
{[%clk 0:00:22.8]} 43... Ne7 {[%clk 0:01:56]} 44. d5 {[%clk 0:00:21.1]} 44...
Kf6 {[%clk 0:01:54.2]} 45. Ke4 {[%clk 0:00:20.2]} 45... b5 {[%clk 0:01:48.4]}
46. Ne6 {[%clk 0:00:19]} 46... a5 {[%clk 0:01:42.9]} 47. Nxc7 {[%clk 0:00:18.5]}
47... b4 {[%clk 0:01:42.2]} 48. axb4 {[%clk 0:00:17.4]} 48... axb4 {[%clk
0:01:38.5]} 49. Nb5 {[%clk 0:00:16.2]} 49... Nc8 {[%clk 0:01:33.8]} 50. d6
{[%clk 0:00:13.6]} 50... Nb6 {[%clk 0:01:28.1]} 51. d7 {[%clk 0:00:12.4]} 51...
Ke7 {[%clk 0:01:27.2]} 52. Nc3 {[%clk 0:00:10.5]} 52... bxc3 {[%clk 0:01:25.8]}
53. Kd3 {[%clk 0:00:09.6]} 53... Nd5 {[%clk 0:01:22.7]} 54. f4 {[%clk
0:00:07.9]} 54... Kd8 {[%clk 0:01:20.7]} 55. g4 {[%clk 0:00:05.9]} 55... Nxf4+
{[%clk 0:01:19.6]} 56. Kxc3 {[%clk 0:00:04.7]} 56... Ng2 {[%clk 0:01:19]} 57. h5
{[%clk 0:00:03.3]} 57... gxh5 {[%clk 0:01:17.5]} 58. gxh5 {[%clk 0:00:02.1]}
58... Nf4 {[%clk 0:01:17.1]} 59. Kd4 {[%clk 0:00:01.2]} 59... Nxh5 {[%clk
0:01:15.6]} 60. Kc5 {[%clk 0:00:00.6]} 60... Kc7 {[%clk 0:01:14.4]} 0-1

[Event "Live Chess"]
[Site "Chess.com"]
[Date "2024.06.01"]
[Round "-"]
[White "Tushinskiy"]
[Black "imchessive"]
[Result "1-0"]
[WhiteElo "2268"]
[BlackElo "1593"]
[TimeControl "300"]
[EndTime "13:32:35 PDT"]
[Termination "Tushinskiy won by resignation"]

1. d4 {[%clk 0:04:57]} 1... f5 {[%clk 0:04:58.7]} 2. c3 {[%clk 0:04:56.9]} 2...
d6 {[%clk 0:04:57.6]} 3. Nf3 {[%clk 0:04:56.8]} 3... Nf6 {[%clk 0:04:56.2]} 4.
Bf4 {[%clk 0:04:56.7]} 4... Nbd7 {[%clk 0:04:55.1]} 5. Bg3 {[%clk 0:04:56.6]}
5... g6 {[%clk 0:04:51.1]} 6. Nbd2 {[%clk 0:04:56.5]} 6... Bg7 {[%clk 0:04:50]}
7. e3 {[%clk 0:04:56.4]} 7... O-O {[%clk 0:04:47.9]} 8. Bd3 {[%clk 0:04:56.3]}
8... Qe8 {[%clk 0:04:43.8]} 9. e4 {[%clk 0:04:54.4]} 9... fxe4 {[%clk
0:04:41.6]} 10. Nxe4 {[%clk 0:04:53.3]} 10... Nxe4 {[%clk 0:04:34.7]} 11. Bxe4
{[%clk 0:04:53.2]} 11... e5 {[%clk 0:04:32.4]} 12. dxe5 {[%clk 0:04:51.2]} 12...
Nxe5 {[%clk 0:04:29.6]} 13. O-O {[%clk 0:04:49.6]} 13... Bg4 {[%clk 0:04:25.5]}
14. Qb3+ {[%clk 0:04:46.7]} 14... Kh8 {[%clk 0:04:15.5]} 15. Qxb7 {[%clk
0:04:45.3]} 15... Bxf3 {[%clk 0:04:05.6]} 16. gxf3 {[%clk 0:04:40.2]} 16... Rb8
{[%clk 0:03:53.5]} 17. Qxa7 {[%clk 0:04:36.5]} 17... Rxf3 {[%clk 0:03:38.2]} 18.
Bxf3 {[%clk 0:04:36.4]} 18... Nxf3+ {[%clk 0:03:37.9]} 19. Kg2 {[%clk
0:04:28.7]} 19... Qa4 {[%clk 0:03:32.4]} 20. Qxa4 {[%clk 0:04:26.4]} 1-0

[Event "Live Chess"]
[Site "Chess.com"]
[Date "2024.06.01"]
[Round "-"]
[White "AlexanderMatlak"]
[Black "GEMdzq"]
[Result "0-1"]
[WhiteElo "2462"]
[BlackElo "2305"]
[TimeControl "300"]
[EndTime "13:33:00 PDT"]
[Termination "GEMdzq won by resignation"]

1. c4 {[%clk 0:04:57.1]} 1... Nf6 {[%clk 0:04:58.2]} 2. Nf3 {[%clk 0:04:56.3]}
2... c5 {[%clk 0:04:52.5]} 3. Nc3 {[%clk 0:04:44.6]} 3... Nc6 {[%clk 0:04:50.3]}
4. g3 {[%clk 0:04:41.3]} 4... d5 {[%clk 0:04:48.4]} 5. cxd5 {[%clk 0:04:39.9]}
5... Nxd5 {[%clk 0:04:48.1]} 6. Bg2 {[%clk 0:04:38.5]} 6... Nxc3 {[%clk
0:04:43.8]} 7. bxc3 {[%clk 0:04:38.4]} 7... e5 {[%clk 0:04:42.6]} 8. O-O {[%clk
0:04:36.6]} 8... Be7 {[%clk 0:04:41.8]} 9. Rb1 {[%clk 0:04:34.8]} 9... O-O
{[%clk 0:04:40.5]} 10. d3 {[%clk 0:04:16]} 10... Rb8 {[%clk 0:04:33.6]} 11. Be3
{[%clk 0:04:09.1]} 11... b6 {[%clk 0:04:24.2]} 12. Nd2 {[%clk 0:04:04.7]} 12...
Bb7 {[%clk 0:04:16.8]} 13. Qa4 {[%clk 0:04:02.2]} 13... Na5 {[%clk 0:04:05.8]}
14. Bxb7 {[%clk 0:03:51]} 14... Rxb7 {[%clk 0:04:05.7]} 15. Nc4 {[%clk
0:03:42.1]} 15... Nxc4 {[%clk 0:03:59.9]} 16. Qxc4 {[%clk 0:03:42]} 16... Kh8
{[%clk 0:03:56.8]} 17. a4 {[%clk 0:03:40.2]} 17... f5 {[%clk 0:03:51]} 18. a5
{[%clk 0:03:38.6]} 18... f4 {[%clk 0:03:48.9]} 19. gxf4 {[%clk 0:03:16.6]} 19...
exf4 {[%clk 0:03:48.1]} 20. Bxf4 {[%clk 0:03:16]} 20... b5 {[%clk 0:03:24.9]}
21. Qe4 {[%clk 0:03:14.5]} 21... Qd7 {[%clk 0:03:24]} 22. Bg3 {[%clk 0:03:09]}
22... Bf6 {[%clk 0:03:17.4]} 23. Rfc1 {[%clk 0:02:42.5]} 23... a6 {[%clk
0:03:12.9]} 24. d4 {[%clk 0:02:10.9]} 24... c4 {[%clk 0:02:50.8]} 25. e3 {[%clk
0:02:05.7]} 25... Qc8 {[%clk 0:02:46.7]} 26. Qg2 {[%clk 0:01:49.4]} 26... Bd8
{[%clk 0:02:44.7]} 27. Ra1 {[%clk 0:01:46.5]} 27... b4 {[%clk 0:02:38.7]} 28.
cxb4 {[%clk 0:01:46.4]} 28... Rxb4 {[%clk 0:02:37.4]} 29. d5 {[%clk 0:01:37]}
29... c3 {[%clk 0:02:33.9]} 30. e4 {[%clk 0:01:26]} 30... c2 {[%clk 0:02:30]}
31. f4 {[%clk 0:01:25.3]} 31... Rc4 {[%clk 0:02:22.9]} 32. e5 {[%clk 0:01:21.2]}
32... Qc5+ {[%clk 0:02:10.3]} 33. Kh1 {[%clk 0:01:20.2]} 33... Bxa5 {[%clk
0:02:05.9]} 34. Ra2 {[%clk 0:01:15.7]} 34... Rc8 {[%clk 0:01:55.6]} 35. d6
{[%clk 0:01:14.7]} 35... Qd4 {[%clk 0:01:50]} 36. f5 {[%clk 0:01:00.9]} 36...
Bd2 {[%clk 0:01:40.9]} 37. Raa1 {[%clk 0:00:57.8]} 37... Bxc1 {[%clk 0:01:39.5]}
38. Rxc1 {[%clk 0:00:57.7]} 38... Qd1+ {[%clk 0:01:34.8]} 39. Qg1 {[%clk
0:00:55.1]} 39... Qf3+ {[%clk 0:01:33.9]} 40. Qg2 {[%clk 0:00:53.7]} 40... Qxf5
{[%clk 0:01:33]} 41. Qd5 {[%clk 0:00:49.7]} 41... R4c5 {[%clk 0:01:25.7]} 42.
Qd2 {[%clk 0:00:38.1]} 42... Qe4+ {[%clk 0:01:17.6]} 43. Kg1 {[%clk 0:00:36.9]}
43... Rd5 {[%clk 0:01:16.6]} 44. Qg5 {[%clk 0:00:26.9]} 44... Rd1+ {[%clk
0:01:13.9]} 45. Kf2 {[%clk 0:00:22.4]} 45... Rf8+ {[%clk 0:01:04.6]} 0-1

[Event "Live Chess"]
[Site "Chess.com"]
[Date "2024.06.01"]
[Round "-"]
[White "CCGoodKnightRookie"]
[Black "Silverback7829"]
[Result "1-0"]
[WhiteElo "2271"]
[BlackElo "980"]
[TimeControl "300"]
[EndTime "13:33:04 PDT"]
[Termination "CCGoodKnightRookie won by checkmate"]

1. d4 {[%clk 0:04:58.2]} 1... d5 {[%clk 0:04:58.5]} 2. Nc3 {[%clk 0:04:57.6]}
2... Nc6 {[%clk 0:04:57.1]} 3. Bf4 {[%clk 0:04:57.2]} 3... Nf6 {[%clk
0:04:52.9]} 4. Nb5 {[%clk 0:04:55.9]} 4... a6 {[%clk 0:04:50.3]} 5. Nxc7+ {[%clk
0:04:54.3]} 5... Kd7 {[%clk 0:04:40.7]} 6. Nxa8 {[%clk 0:04:52.9]} 6... Qa5+
{[%clk 0:04:35.5]} 7. c3 {[%clk 0:04:51.1]} 7... Nb4 {[%clk 0:04:28.1]} 8. cxb4
{[%clk 0:04:46.7]} 8... Qxb4+ {[%clk 0:04:25.4]} 9. Qd2 {[%clk 0:04:46.2]} 9...
Qxd2+ {[%clk 0:04:19.6]} 10. Bxd2 {[%clk 0:04:44.5]} 10... e6 {[%clk 0:04:10.4]}
11. Nb6+ {[%clk 0:04:42.9]} 11... Kc6 {[%clk 0:04:05.4]} 12. Nxc8 {[%clk
0:04:41.5]} 12... g6 {[%clk 0:03:55.6]} 13. Rc1+ {[%clk 0:04:39.5]} 13... Kd7
{[%clk 0:03:49.2]} 14. Nb6+ {[%clk 0:04:37.5]} 14... Ke7 {[%clk 0:03:44.4]} 15.
Rc7+ {[%clk 0:04:36.2]} 15... Kd8 {[%clk 0:03:40.4]} 16. Rc8+ {[%clk 0:04:35.1]}
16... Ke7 {[%clk 0:03:35.2]} 17. Bb4# {[%clk 0:04:35]} 1-0